[Event "Titled Tuesday Blitz October 18 Late 2022"]
[White "Storey, Charles H"]
[Black "Cabarkapa, Novak"]
[WhiteFideId "406686"]
[BlackFideId "943746"]
[WhiteElo "2252"]
[BlackElo "2390"]
[Result "1-0"]
[Round "01"]
[TimeControl "180+1"]
[Date "2022.10.19"]
[WhiteClock "0:00:05"]
[BlackClock "0:00:11"]

1. c4 {[%clk 0:02:59]}  a6 {[%clk 0:02:58]} 2. g3 {[%clk 0:02:57]}  h5 {[%clk 0:02:57]} 3. h4 {[%clk 0:02:56]}  Nh6 {[%clk 0:02:56]} 4. Bg2 {[%clk 0:02:56]}  Ng4 {[%clk 0:02:57]} 5. Nc3 {[%clk 0:02:52]}  d6 {[%clk 0:02:55]} 6. Nf3 {[%clk 0:02:48]}  c6 {[%clk 0:02:53]} 7. d4 {[%clk 0:02:46]}  Nd7 {[%clk 0:02:51]} 8. a4 {[%clk 0:02:43]}  a5 {[%clk 0:02:50]} 9. e4 {[%clk 0:02:41]}  Nb8 {[%clk 0:02:49]} 10. O-O {[%clk 0:02:35]}  Na6 {[%clk 0:02:48]} 11. Bf4 {[%clk 0:02:30]}  e5 {[%clk 0:02:46]} 12. dxe5 {[%clk 0:02:26]}  dxe5 {[%clk 0:02:46]} 13. Qxd8+ {[%clk 0:02:24]}  Kxd8 {[%clk 0:02:47]} 14. Nxe5 {[%clk 0:02:23]}  Nxe5 {[%clk 0:02:40]} 15. Bxe5 {[%clk 0:02:24]}  f6 {[%clk 0:02:38]} 16. Rad1+ {[%clk 0:02:20]}  Ke8 {[%clk 0:02:39]} 17. Bd4 {[%clk 0:02:17]}  Bc5 {[%clk 0:02:34]} 18. e5 {[%clk 0:02:14]}  f5 {[%clk 0:02:33]} 19. Ne2 {[%clk 0:02:05]}  Kf7 {[%clk 0:02:18]} 20. Nf4 {[%clk 0:02:04]}  Be6 {[%clk 0:02:15]} 21. b3 {[%clk 0:01:58]}  Rad8 {[%clk 0:02:14]} 22. Bb2 {[%clk 0:01:51]}  Bb4 {[%clk 0:02:11]} 23. Bf3 {[%clk 0:01:45]}  g6 {[%clk 0:02:08]} 24. Nd3 {[%clk 0:01:44]}  Nc5 {[%clk 0:02:02]} 25. Nxc5 {[%clk 0:01:43]}  Bxc5 {[%clk 0:02:03]} 26. Bc3 {[%clk 0:01:41]}  Bb4 {[%clk 0:02:01]} 27. Bxb4 {[%clk 0:01:41]}  axb4 {[%clk 0:02:02]} 28. Rxd8 {[%clk 0:01:38]}  Rxd8 {[%clk 0:02:03]} 29. Rd1 {[%clk 0:01:38]}  Ra8 {[%clk 0:02:03]} 30. Rd6 {[%clk 0:01:21]}  Ra5 {[%clk 0:01:57]} 31. Rd8 {[%clk 0:01:16]}  Rxe5 {[%clk 0:01:52]} 32. Rb8 {[%clk 0:01:16]}  b5 {[%clk 0:01:50]} 33. cxb5 {[%clk 0:01:11]}  cxb5 {[%clk 0:01:49]} 34. a5 {[%clk 0:01:10]}  Bxb3 {[%clk 0:01:40]} 35. a6 {[%clk 0:01:08]}  Re1+ {[%clk 0:01:40]} 36. Kg2 {[%clk 0:01:01]}  Ra1 {[%clk 0:01:41]} 37. Rb7+ {[%clk 0:01:01]}  Ke6 {[%clk 0:01:34]} 38. a7 {[%clk 0:01:00]}  Bd5 {[%clk 0:01:34]} 39. Rb6+ {[%clk 0:00:52]}  Ke5 {[%clk 0:01:29]} 40. Rxb5 {[%clk 0:00:52]}  Rxa7 {[%clk 0:01:28]} 41. Rxd5+ {[%clk 0:00:52]}  Kf6 {[%clk 0:01:27]} 42. Rb5 {[%clk 0:00:51]}  Ra4 {[%clk 0:01:27]} 43. Bc6 {[%clk 0:00:48]}  f4 {[%clk 0:01:21]} 44. gxf4 {[%clk 0:00:45]}  Ra3 {[%clk 0:01:04]} 45. Rxb4 {[%clk 0:00:41]}  Kf5 {[%clk 0:01:05]} 46. Bd7+ {[%clk 0:00:40]}  Kf6 {[%clk 0:01:04]} 47. Rb6+ {[%clk 0:00:38]}  Kg7 {[%clk 0:01:04]} 48. Be8 {[%clk 0:00:36]}  Ra5 {[%clk 0:00:56]} 49. Bxg6 {[%clk 0:00:31]}  Kh6 {[%clk 0:00:55]} 50. Be4+ {[%clk 0:00:25]}  Kg7 {[%clk 0:00:55]} 51. Rg6+ {[%clk 0:00:21]}  Kh8 {[%clk 0:00:55]} 52. Rg5 {[%clk 0:00:19]}  Ra4 {[%clk 0:00:55]} 53. Rxh5+ {[%clk 0:00:16]}  Kg7 {[%clk 0:00:56]} 54. Re5 {[%clk 0:00:16]}  Kh6 {[%clk 0:00:55]} 55. Kg3 {[%clk 0:00:16]}  Ra3+ {[%clk 0:00:55]} 56. f3 {[%clk 0:00:16]}  Ra1 {[%clk 0:00:56]} 57. Re6+ {[%clk 0:00:15]}  Kg7 {[%clk 0:00:56]} 58. h5 {[%clk 0:00:14]}  Rg1+ {[%clk 0:00:55]} 59. Kf2 {[%clk 0:00:15]}  Rh1 {[%clk 0:00:52]} 60. h6+ {[%clk 0:00:15]}  Kf7 {[%clk 0:00:53]} 61. f5 {[%clk 0:00:14]}  Rh2+ {[%clk 0:00:53]} 62. Ke3 {[%clk 0:00:14]}  Rh1 {[%clk 0:00:52]} 63. Kf4 {[%clk 0:00:15]}  Rh4+ {[%clk 0:00:51]} 64. Ke5 {[%clk 0:00:15]}  Kg8 {[%clk 0:00:49]} 65. Rg6+ {[%clk 0:00:14]}  Kh8 {[%clk 0:00:49]} 66. Kf6 {[%clk 0:00:13]}  Rh5 {[%clk 0:00:43]} 67. Ke6 {[%clk 0:00:10]}  Rh1 {[%clk 0:00:41]} 68. f6 {[%clk 0:00:10]}  Ra1 {[%clk 0:00:31]} 69. f7 {[%clk 0:00:10]}  Ra6+ {[%clk 0:00:30]} 70. Bc6 {[%clk 0:00:09]}  Rxc6+ {[%clk 0:00:26]} 71. Kd7 {[%clk 0:00:09]}  Rxg6 {[%clk 0:00:22]} 72. f8=Q+ {[%clk 0:00:09]}  Kh7 {[%clk 0:00:23]} 73. Qf7+ {[%clk 0:00:08]}  Kxh6 {[%clk 0:00:22]} 74. Ke8 {[%clk 0:00:05]}  Rg7 {[%clk 0:00:18]} 75. Qf4+ {[%clk 0:00:05]}  Kh7 {[%clk 0:00:18]} 76. Qh4+ {[%clk 0:00:05]}  Kg8 {[%clk 0:00:18]} 77. f4 {[%clk 0:00:05]}  Rg6 {[%clk 0:00:15]} 78. f5 {[%clk 0:00:05]}  Ra6 {[%clk 0:00:11]} 79. Qc4+ {[%clk 0:00:04]}  Kh8 {[%clk 0:00:10]} 80. Qxa6 {[%clk 0:00:04]}  Kg7 {[%clk 0:00:11]} 81. Qg6+ {[%clk 0:00:04]}  Kh8 {[%clk 0:00:11]} 82. Qg1 {[%clk 0:00:04]}  Kh7 {[%clk 0:00:11]} 83. Kf7 {[%clk 0:00:05]}  Kh6 {[%clk 0:00:11]} 84. Qg6# {[%clk 0:00:05]} 1-0


[Site "https://www.chess.com"]

[Event "Titled Tuesday Blitz October 18 Late 2022"]
[White "Talibov, Shiroghlan"]
[Black "Ventura Bolet, Maxim"]
[WhiteFideId "13429078"]
[BlackFideId "22238824"]
[WhiteElo "2242"]
[BlackElo "2186"]
[Result "0-1"]
[Round "01"]
[TimeControl "180+1"]
[Date "2022.10.19"]
[WhiteClock "0:02:09"]
[BlackClock "0:01:44"]

1. Nf3 {[%clk 0:03:00]}  d5 {[%clk 0:02:57]} 2. d4 {[%clk 0:02:52]}  Nf6 {[%clk 0:02:52]} 3. g3 {[%clk 0:02:50]}  e6 {[%clk 0:02:47]} 4. Bg2 {[%clk 0:02:49]}  b5 {[%clk 0:02:41]} 5. O-O {[%clk 0:02:46]}  Nbd7 {[%clk 0:02:40]} 6. a4 {[%clk 0:02:43]}  b4 {[%clk 0:02:39]} 7. c3 {[%clk 0:02:41]}  bxc3 {[%clk 0:02:39]} 8. bxc3 {[%clk 0:02:42]}  c5 {[%clk 0:02:31]} 9. c4 {[%clk 0:02:42]}  Bb7 {[%clk 0:02:23]} 10. cxd5 {[%clk 0:02:41]}  Nxd5 {[%clk 0:02:12]} 11. Ba3 {[%clk 0:02:28]}  Be7 {[%clk 0:02:07]} 12. Nbd2 {[%clk 0:02:16]}  O-O {[%clk 0:02:04]} 13. Ne4 {[%clk 0:02:11]}  c4 {[%clk 0:01:52]} 14. Nd6 {[%clk 0:02:09]}  Ba6 {[%clk 0:01:44]} 0-1


[Site "https://www.chess.com"]

[Event "Titled Tuesday Blitz October 18 Late 2022"]
[White "Tomaszewski, Kacper"]
[Black "Eisa Mohmood, Alkhoori"]
[WhiteFideId "1127373"]
[BlackFideId "9316116"]
[WhiteElo "2211"]
[BlackElo "1245"]
[Result "0-1"]
[Round "01"]
[TimeControl "180+1"]
[Date "2022.10.19"]
[WhiteClock "0:00:07"]
[BlackClock "0:01:02"]

1. Nf3 {[%clk 0:03:00]}  Nf6 {[%clk 0:02:56]} 2. c4 {[%clk 0:03:00]}  g6 {[%clk 0:02:55]} 3. Nc3 {[%clk 0:02:57]}  d5 {[%clk 0:02:55]} 4. cxd5 {[%clk 0:02:55]}  Nxd5 {[%clk 0:02:56]} 5. e3 {[%clk 0:02:55]}  Bg7 {[%clk 0:02:52]} 6. h4 {[%clk 0:02:49]}  h5 {[%clk 0:02:46]} 7. Qb3 {[%clk 0:02:38]}  Nxc3 {[%clk 0:02:43]} 8. bxc3 {[%clk 0:02:36]}  O-O {[%clk 0:02:41]} 9. d4 {[%clk 0:02:33]}  c5 {[%clk 0:02:38]} 10. Ba3 {[%clk 0:02:31]}  cxd4 {[%clk 0:02:36]} 11. cxd4 {[%clk 0:02:31]}  Nc6 {[%clk 0:02:34]} 12. Be2 {[%clk 0:02:26]}  Qa5+ {[%clk 0:02:31]} 13. Nd2 {[%clk 0:02:26]}  Be6 {[%clk 0:02:28]} 14. Qb2 {[%clk 0:02:23]}  Rfd8 {[%clk 0:02:23]} 15. O-O {[%clk 0:02:22]}  Nxd4 {[%clk 0:02:21]} 16. exd4 {[%clk 0:02:16]}  Bxd4 {[%clk 0:02:22]} 17. Qb4 {[%clk 0:01:23]}  Qxb4 {[%clk 0:02:19]} 18. Bxb4 {[%clk 0:01:24]}  Bxa1 {[%clk 0:02:19]} 19. Rxa1 {[%clk 0:01:24]}  a5 {[%clk 0:02:11]} 20. Bc3 {[%clk 0:01:24]}  Rdc8 {[%clk 0:02:05]} 21. Bd4 {[%clk 0:01:11]}  Rc2 {[%clk 0:02:02]} 22. Be3 {[%clk 0:01:10]}  a4 {[%clk 0:01:59]} 23. a3 {[%clk 0:01:05]}  Rac8 {[%clk 0:01:53]} 24. Bb5 {[%clk 0:00:56]}  Rc1+ {[%clk 0:01:50]} 25. Rxc1 {[%clk 0:00:56]}  Rxc1+ {[%clk 0:01:51]} 26. Kh2 {[%clk 0:00:56]}  Rc3 {[%clk 0:01:47]} 27. Bxa4 {[%clk 0:00:47]}  Rxa3 {[%clk 0:01:47]} 28. Bb5 {[%clk 0:00:44]}  f6 {[%clk 0:01:45]} 29. Bc4 {[%clk 0:00:37]}  Bxc4 {[%clk 0:01:40]} 30. Nxc4 {[%clk 0:00:38]}  Ra4 {[%clk 0:01:39]} 31. Nb6 {[%clk 0:00:37]}  Rxh4+ {[%clk 0:01:38]} 32. Kg3 {[%clk 0:00:38]}  Rg4+ {[%clk 0:01:36]} 33. Kf3 {[%clk 0:00:38]}  g5 {[%clk 0:01:33]} 34. Bc5 {[%clk 0:00:36]}  Kf7 {[%clk 0:01:31]} 35. Nd5 {[%clk 0:00:27]}  b5 {[%clk 0:01:27]} 36. Ne3 {[%clk 0:00:18]}  Ra4 {[%clk 0:01:24]} 37. Nd5 {[%clk 0:00:18]}  Rc4 {[%clk 0:01:21]} 38. Be3 {[%clk 0:00:13]}  b4 {[%clk 0:01:17]} 39. Ke2 {[%clk 0:00:13]}  b3 {[%clk 0:01:15]} 40. Kd3 {[%clk 0:00:13]}  b2 {[%clk 0:01:11]} 41. Kxc4 {[%clk 0:00:13]}  b1=Q {[%clk 0:01:11]} 42. Nc3 {[%clk 0:00:12]}  Qf1+ {[%clk 0:01:08]} 43. Kd4 {[%clk 0:00:12]}  h4 {[%clk 0:01:06]} 44. Ne4 {[%clk 0:00:08]}  Qxg2 {[%clk 0:01:04]} 45. Nc5 {[%clk 0:00:07]}  h3 {[%clk 0:01:02]} 0-1


[Site "https://www.chess.com"]

[Event "Titled Tuesday Blitz October 18 Late 2022"]
[White "Tsaruk, Maksim"]
[Black "Ward, Ieuan C"]
[WhiteFideId "13511173"]
[BlackFideId "406627"]
[WhiteElo "2273"]
[BlackElo "2364"]
[Result "1-0"]
[Round "01"]
[TimeControl "180+1"]
[Date "2022.10.19"]
[WhiteClock "0:01:30"]
[BlackClock "0:00:12"]

1. d4 {[%clk 0:02:58]}  Nf6 {[%clk 0:02:59]} 2. Nf3 {[%clk 0:02:58]}  e6 {[%clk 0:02:59]} 3. c4 {[%clk 0:02:59]}  b6 {[%clk 0:02:59]} 4. Nc3 {[%clk 0:03:00]}  Bb7 {[%clk 0:02:59]} 5. Bf4 {[%clk 0:03:00]}  Bb4 {[%clk 0:02:55]} 6. e3 {[%clk 0:02:59]}  Ne4 {[%clk 0:02:54]} 7. Qc2 {[%clk 0:02:59]}  d6 {[%clk 0:02:52]} 8. Bd3 {[%clk 0:02:59]}  f5 {[%clk 0:02:49]} 9. O-O {[%clk 0:02:50]}  Bxc3 {[%clk 0:02:47]} 10. bxc3 {[%clk 0:02:51]}  Nd7 {[%clk 0:02:41]} 11. Nd2 {[%clk 0:02:45]}  Ndf6 {[%clk 0:02:39]} 12. f3 {[%clk 0:02:44]}  Nxd2 {[%clk 0:02:38]} 13. Qxd2 {[%clk 0:02:45]}  O-O {[%clk 0:02:35]} 14. Rae1 {[%clk 0:02:30]}  Qd7 {[%clk 0:02:32]} 15. e4 {[%clk 0:02:29]}  fxe4 {[%clk 0:02:30]} 16. fxe4 {[%clk 0:02:30]}  Nh5 {[%clk 0:01:47]} 17. Be3 {[%clk 0:02:17]}  e5 {[%clk 0:01:41]} 18. c5 {[%clk 0:02:11]}  Rae8 {[%clk 0:01:34]} 19. cxd6 {[%clk 0:02:08]}  Qxd6 {[%clk 0:01:23]} 20. Bc4+ {[%clk 0:02:01]}  Kh8 {[%clk 0:01:22]} 21. Bf7 {[%clk 0:02:01]}  Nf6 {[%clk 0:01:03]} 22. Bxe8 {[%clk 0:02:00]}  Rxe8 {[%clk 0:01:03]} 23. dxe5 {[%clk 0:01:58]}  Qxd2 {[%clk 0:00:54]} 24. Bxd2 {[%clk 0:01:59]}  Rxe5 {[%clk 0:00:53]} 25. Bf4 {[%clk 0:01:58]}  Rxe4 {[%clk 0:00:43]} 26. Rxe4 {[%clk 0:01:51]}  Nxe4 {[%clk 0:00:38]} 27. Bxc7 {[%clk 0:01:52]}  Kg8 {[%clk 0:00:36]} 28. Be5 {[%clk 0:01:52]}  Bd5 {[%clk 0:00:35]} 29. a3 {[%clk 0:01:46]}  g6 {[%clk 0:00:31]} 30. Rf4 {[%clk 0:01:46]}  b5 {[%clk 0:00:25]} 31. h4 {[%clk 0:01:46]}  a5 {[%clk 0:00:22]} 32. Kh2 {[%clk 0:01:42]}  a4 {[%clk 0:00:22]} 33. g4 {[%clk 0:01:39]}  Bc6 {[%clk 0:00:18]} 34. h5 {[%clk 0:01:39]}  Nd2 {[%clk 0:00:16]} 35. Kg3 {[%clk 0:01:31]}  Nc4 {[%clk 0:00:16]} 36. Bd4 {[%clk 0:01:31]}  gxh5 {[%clk 0:00:15]} 37. gxh5 {[%clk 0:01:31]}  Nxa3 {[%clk 0:00:13]} 38. h6 {[%clk 0:01:30]}  Nc4 {[%clk 0:00:12]} 39. Bg7 {[%clk 0:01:30]} 1-0


[Site "https://www.chess.com"]

[Event "Titled Tuesday Blitz October 18 Late 2022"]
[White "Vargas, Mauricio"]
[Black "Decuigniere, Tom"]
[WhiteFideId "4404572"]
[BlackFideId "26093820"]
[WhiteElo "2025"]
[BlackElo "2223"]
[Result "0-1"]
[Round "01"]
[TimeControl "180+1"]
[Date "2022.10.19"]
[WhiteClock "0:00:31"]
[BlackClock "0:01:15"]

1. e4 {[%clk 0:02:59]}  c5 {[%clk 0:02:59]} 2. Nc3 {[%clk 0:02:59]}  g6 {[%clk 0:03:00]} 3. f4 {[%clk 0:03:00]}  Bg7 {[%clk 0:03:00]} 4. Nf3 {[%clk 0:03:01]}  Nc6 {[%clk 0:03:01]} 5. Bb5 {[%clk 0:03:01]}  e6 {[%clk 0:03:01]} 6. Bxc6 {[%clk 0:03:02]}  dxc6 {[%clk 0:02:59]} 7. d3 {[%clk 0:03:03]}  Ne7 {[%clk 0:02:59]} 8. Bd2 {[%clk 0:03:00]}  O-O {[%clk 0:02:58]} 9. O-O {[%clk 0:03:00]}  b6 {[%clk 0:02:56]} 10. Qe1 {[%clk 0:03:00]}  f5 {[%clk 0:02:23]} 11. Qh4 {[%clk 0:02:54]}  Bd7 {[%clk 0:02:14]} 12. Rad1 {[%clk 0:02:44]}  Nc8 {[%clk 0:02:11]} 13. e5 {[%clk 0:02:43]}  Qxh4 {[%clk 0:02:10]} 14. Nxh4 {[%clk 0:02:41]}  Ne7 {[%clk 0:02:10]} 15. Nf3 {[%clk 0:02:40]}  Nd5 {[%clk 0:02:10]} 16. Ne2 {[%clk 0:02:36]}  Rfd8 {[%clk 0:02:07]} 17. h3 {[%clk 0:02:28]}  Bc8 {[%clk 0:02:03]} 18. Kh2 {[%clk 0:02:28]}  Ba6 {[%clk 0:02:02]} 19. Rg1 {[%clk 0:02:24]}  Bf8 {[%clk 0:01:51]} 20. Ng5 {[%clk 0:02:24]}  Re8 {[%clk 0:01:46]} 21. g4 {[%clk 0:02:02]}  h6 {[%clk 0:01:40]} 22. Nf3 {[%clk 0:01:59]}  Kf7 {[%clk 0:01:38]} 23. gxf5 {[%clk 0:01:59]}  gxf5 {[%clk 0:01:32]} 24. Ng3 {[%clk 0:01:55]}  Be7 {[%clk 0:01:31]} 25. Nh5 {[%clk 0:01:51]}  Rg8 {[%clk 0:01:31]} 26. Rg2 {[%clk 0:01:46]}  Rxg2+ {[%clk 0:01:27]} 27. Kxg2 {[%clk 0:01:47]}  Rg8+ {[%clk 0:01:26]} 28. Kh2 {[%clk 0:01:46]}  c4 {[%clk 0:01:23]} 29. dxc4 {[%clk 0:01:29]}  Bxc4 {[%clk 0:01:24]} 30. b3 {[%clk 0:01:08]}  Be2 {[%clk 0:01:20]} 31. c4 {[%clk 0:00:47]}  Bxd1 {[%clk 0:01:19]} 32. cxd5 {[%clk 0:00:48]}  cxd5 {[%clk 0:01:19]} 33. Nd4 {[%clk 0:00:45]}  Bxh5 {[%clk 0:01:18]} 34. Be1 {[%clk 0:00:36]}  Bc5 {[%clk 0:01:16]} 35. Nb5 {[%clk 0:00:33]}  Bg1+ {[%clk 0:01:14]} 36. Kh1 {[%clk 0:00:31]}  Bf3# {[%clk 0:01:15]} 0-1


[Site "https://www.chess.com"]

[Event "Titled Tuesday Blitz October 18 Late 2022"]
[White "Vujic, Mihailo"]
[Black "Pakleza, Zbigniew"]
[WhiteFideId "918873"]
[BlackFideId "1119290"]
[WhiteElo "2256"]
[BlackElo "2411"]
[Result "0-1"]
[Round "01"]
[TimeControl "180+1"]
[Date "2022.10.18"]
[WhiteClock "0:01:06"]
[BlackClock "0:01:17"]

1. e4 {[%clk 0:02:57]}  d6 {[%clk 0:03:00]} 2. d4 {[%clk 0:02:52]}  Nf6 {[%clk 0:03:00]} 3. Nc3 {[%clk 0:02:53]}  c6 {[%clk 0:03:00]} 4. Nf3 {[%clk 0:02:52]}  Bg4 {[%clk 0:03:00]} 5. h3 {[%clk 0:02:50]}  Bh5 {[%clk 0:03:00]} 6. g4 {[%clk 0:02:49]}  Bg6 {[%clk 0:03:00]} 7. Qe2 {[%clk 0:02:50]}  e6 {[%clk 0:02:57]} 8. h4 {[%clk 0:02:20]}  h5 {[%clk 0:02:50]} 9. g5 {[%clk 0:02:20]}  Nfd7 {[%clk 0:02:51]} 10. Bh3 {[%clk 0:02:19]}  Be7 {[%clk 0:02:51]} 11. Bd2 {[%clk 0:02:18]}  d5 {[%clk 0:02:50]} 12. e5 {[%clk 0:02:16]}  c5 {[%clk 0:02:46]} 13. O-O-O {[%clk 0:02:13]}  Nc6 {[%clk 0:02:44]} 14. Nb5 {[%clk 0:02:10]}  cxd4 {[%clk 0:02:40]} 15. Nbxd4 {[%clk 0:02:06]}  Be4 {[%clk 0:02:25]} 16. Nxc6 {[%clk 0:01:59]}  bxc6 {[%clk 0:02:26]} 17. Rhg1 {[%clk 0:01:55]}  g6 {[%clk 0:02:20]} 18. Bc3 {[%clk 0:01:22]}  Qb6 {[%clk 0:02:09]} 19. Nd2 {[%clk 0:01:17]}  Bf5 {[%clk 0:01:53]} 20. Bxf5 {[%clk 0:01:15]}  gxf5 {[%clk 0:01:54]} 21. g6 {[%clk 0:01:14]}  Bxh4 {[%clk 0:01:25]} 22. gxf7+ {[%clk 0:01:08]}  Kxf7 {[%clk 0:01:26]} 23. Nf3 {[%clk 0:01:07]}  Qxf2 {[%clk 0:01:17]} 24. Ng5+ {[%clk 0:01:06]}  Bxg5+ {[%clk 0:01:17]} 0-1


[Site "https://www.chess.com"]

[Event "Titled Tuesday Blitz October 18 Late 2022"]
[White "Winkels, Marcel"]
[Black "Diaz Rosas, Julio Cesar"]
[WhiteFideId "1003887"]
[BlackFideId "5105099"]
[WhiteElo "1900"]
[BlackElo "2246"]
[Result "0-1"]
[Round "01"]
[TimeControl "180+1"]
[Date "2022.10.19"]
[WhiteClock "0:00:03"]
[BlackClock "0:00:20"]

1. e4 {[%clk 0:02:56]}  c5 {[%clk 0:02:55]} 2. Nf3 {[%clk 0:02:55]}  d6 {[%clk 0:02:55]} 3. Bb5+ {[%clk 0:02:53]}  Nd7 {[%clk 0:02:54]} 4. c4 {[%clk 0:02:52]}  Nf6 {[%clk 0:02:52]} 5. Nc3 {[%clk 0:02:51]}  g6 {[%clk 0:02:52]} 6. h3 {[%clk 0:02:50]}  Bg7 {[%clk 0:02:52]} 7. O-O {[%clk 0:02:50]}  O-O {[%clk 0:02:52]} 8. d3 {[%clk 0:02:50]}  Nb6 {[%clk 0:02:49]} 9. Bg5 {[%clk 0:02:40]}  a6 {[%clk 0:02:49]} 10. Ba4 {[%clk 0:02:39]}  Nxa4 {[%clk 0:02:46]} 11. Nxa4 {[%clk 0:02:38]}  b5 {[%clk 0:02:45]} 12. Nc3 {[%clk 0:02:36]}  Rb8 {[%clk 0:02:39]} 13. Rb1 {[%clk 0:02:33]}  Bd7 {[%clk 0:02:34]} 14. Qd2 {[%clk 0:02:31]}  Re8 {[%clk 0:02:33]} 15. Rfe1 {[%clk 0:02:24]}  Bc6 {[%clk 0:02:31]} 16. e5 {[%clk 0:02:13]}  dxe5 {[%clk 0:02:25]} 17. Nxe5 {[%clk 0:02:12]}  Ba8 {[%clk 0:02:24]} 18. Qe3 {[%clk 0:02:00]}  Qd6 {[%clk 0:02:17]} 19. Rbd1 {[%clk 0:01:41]}  b4 {[%clk 0:01:54]} 20. Ne2 {[%clk 0:01:33]}  Rbd8 {[%clk 0:01:47]} 21. d4 {[%clk 0:01:26]}  cxd4 {[%clk 0:01:45]} 22. Nxd4 {[%clk 0:01:25]}  Qc7 {[%clk 0:01:44]} 23. b3 {[%clk 0:01:20]}  Qb7 {[%clk 0:01:42]} 24. Ndf3 {[%clk 0:01:07]}  h6 {[%clk 0:01:36]} 25. Bxh6 {[%clk 0:01:01]}  Ne4 {[%clk 0:01:22]} 26. Bxg7 {[%clk 0:00:56]}  Kxg7 {[%clk 0:01:20]} 27. Qf4 {[%clk 0:00:50]}  f6 {[%clk 0:01:12]} 28. Ng4 {[%clk 0:00:46]}  g5 {[%clk 0:01:10]} 29. Qe3 {[%clk 0:00:32]}  Rxd1 {[%clk 0:01:04]} 30. Rxd1 {[%clk 0:00:29]}  Nc3 {[%clk 0:01:03]} 31. Re1 {[%clk 0:00:21]}  e5 {[%clk 0:00:59]} 32. c5 {[%clk 0:00:15]}  Qc6 {[%clk 0:00:56]} 33. h4 {[%clk 0:00:11]}  Nd5 {[%clk 0:00:47]} 34. Qd2 {[%clk 0:00:10]}  Qe6 {[%clk 0:00:29]} 35. Ngh2 {[%clk 0:00:08]}  g4 {[%clk 0:00:22]} 36. Nd4 {[%clk 0:00:07]}  Qc8 {[%clk 0:00:22]} 37. c6 {[%clk 0:00:06]}  exd4 {[%clk 0:00:20]} 38. Rxe8 {[%clk 0:00:04]}  Qxe8 {[%clk 0:00:20]} 39. Qxd4 {[%clk 0:00:03]}  Qe1+ {[%clk 0:00:19]} 40. Nf1 {[%clk 0:00:03]}  Bxc6 {[%clk 0:00:20]} 0-1


[Site "https://www.chess.com"]

[Event "Titled Tuesday Blitz October 18 Late 2022"]
[White "Winterberg, Lukas"]
[Black "Mohammadian, Mohammad"]
[WhiteFideId "24622702"]
[BlackFideId "12566055"]
[WhiteElo "2349"]
[BlackElo "1489"]
[Result "1-0"]
[Round "01"]
[TimeControl "180+1"]
[Date "2022.10.19"]
[WhiteClock "0:01:52"]
[BlackClock "0:01:10"]

1. e4 {[%clk 0:02:53]}  e5 {[%clk 0:02:59]} 2. Nf3 {[%clk 0:02:52]}  Nc6 {[%clk 0:02:58]} 3. Bc4 {[%clk 0:02:49]}  Bc5 {[%clk 0:02:57]} 4. c3 {[%clk 0:02:47]}  Nf6 {[%clk 0:02:56]} 5. d4 {[%clk 0:02:47]}  exd4 {[%clk 0:02:55]} 6. e5 {[%clk 0:02:47]}  d5 {[%clk 0:02:54]} 7. Bb5 {[%clk 0:02:45]}  Ne4 {[%clk 0:02:53]} 8. cxd4 {[%clk 0:02:45]}  Bb6 {[%clk 0:02:52]} 9. O-O {[%clk 0:02:40]}  O-O {[%clk 0:02:52]} 10. Nc3 {[%clk 0:02:37]}  Nxc3 {[%clk 0:02:46]} 11. bxc3 {[%clk 0:02:38]}  Bd7 {[%clk 0:02:41]} 12. Bd3 {[%clk 0:02:33]}  Be6 {[%clk 0:02:35]} 13. Ng5 {[%clk 0:02:09]}  h6 {[%clk 0:02:32]} 14. Nxe6 {[%clk 0:02:09]}  fxe6 {[%clk 0:02:32]} 15. Qg4 {[%clk 0:02:02]}  g5 {[%clk 0:01:56]} 16. Qxe6+ {[%clk 0:01:55]}  Kh8 {[%clk 0:01:10]} 17. Qxh6+ {[%clk 0:01:51]}  Kg8 {[%clk 0:01:10]} 18. Qh7# {[%clk 0:01:52]} 1-0


[Site "https://www.chess.com"]

[Event "Titled Tuesday Blitz October 18 Late 2022"]
[White "Zeynalli, Rashad"]
[Black "Coelho, Ramyres Santana"]
[WhiteFideId "13403320"]
[BlackFideId "2120690"]
[WhiteElo "2125"]
[BlackElo "1888"]
[Result "1/2-1/2"]
[Round "01"]
[TimeControl "180+1"]
[Date "2022.10.19"]
[WhiteClock "0:00:52"]
[BlackClock "0:00:22"]

1. d4 {[%clk 0:03:00]}  Nf6 {[%clk 0:02:55]} 2. Bf4 {[%clk 0:03:01]}  Nh5 {[%clk 0:02:54]} 3. Bc1 {[%clk 0:02:56]}  Nf6 {[%clk 0:02:53]} 4. Nf3 {[%clk 0:02:57]}  g6 {[%clk 0:02:53]} 5. Bf4 {[%clk 0:02:56]}  Nh5 {[%clk 0:02:53]} 6. Bg5 {[%clk 0:02:56]}  h6 {[%clk 0:02:51]} 7. Bh4 {[%clk 0:02:56]}  Bg7 {[%clk 0:02:51]} 8. e3 {[%clk 0:02:53]}  c5 {[%clk 0:02:50]} 9. c3 {[%clk 0:02:50]}  Qb6 {[%clk 0:02:48]} 10. Qb3 {[%clk 0:02:47]}  Qxb3 {[%clk 0:02:46]} 11. axb3 {[%clk 0:02:47]}  cxd4 {[%clk 0:02:43]} 12. exd4 {[%clk 0:02:46]}  Nc6 {[%clk 0:02:38]} 13. Na3 {[%clk 0:02:43]}  g5 {[%clk 0:02:32]} 14. Bg3 {[%clk 0:02:42]}  Nxg3 {[%clk 0:02:31]} 15. hxg3 {[%clk 0:02:43]}  O-O {[%clk 0:02:32]} 16. Nc4 {[%clk 0:02:37]}  d5 {[%clk 0:02:29]} 17. Nb6 {[%clk 0:02:35]}  Rb8 {[%clk 0:02:15]} 18. Nxd5 {[%clk 0:02:34]}  e6 {[%clk 0:02:12]} 19. Ne3 {[%clk 0:02:31]}  f5 {[%clk 0:02:05]} 20. Bb5 {[%clk 0:02:26]}  a6 {[%clk 0:02:00]} 21. Bxc6 {[%clk 0:02:23]}  bxc6 {[%clk 0:02:01]} 22. Nc4 {[%clk 0:02:23]}  Rxb3 {[%clk 0:01:56]} 23. Kd2 {[%clk 0:02:18]}  c5 {[%clk 0:01:48]} 24. dxc5 {[%clk 0:02:13]}  Rd8+ {[%clk 0:01:48]} 25. Kc2 {[%clk 0:02:13]}  Rb5 {[%clk 0:01:40]} 26. b4 {[%clk 0:02:12]}  Bb7 {[%clk 0:01:34]} 27. Rhd1 {[%clk 0:02:01]}  Be4+ {[%clk 0:01:33]} 28. Kb2 {[%clk 0:01:52]}  Rxb4+ {[%clk 0:01:32]} 29. Ka3 {[%clk 0:01:31]}  Rxd1 {[%clk 0:01:25]} 30. Rxd1 {[%clk 0:01:30]}  Rxc4 {[%clk 0:01:25]} 31. Rd8+ {[%clk 0:01:29]}  Kh7 {[%clk 0:01:25]} 32. Nd4 {[%clk 0:01:29]}  Rxc3+ {[%clk 0:01:23]} 33. Kb4 {[%clk 0:01:29]}  Rd3 {[%clk 0:00:59]} 34. Nxe6 {[%clk 0:01:25]}  Rxd8 {[%clk 0:00:59]} 35. Nxd8 {[%clk 0:01:26]}  Bxg2 {[%clk 0:00:59]} 36. c6 {[%clk 0:01:25]}  Bf8+ {[%clk 0:00:52]} 37. Ka5 {[%clk 0:01:23]}  Bd6 {[%clk 0:00:52]} 38. Kxa6 {[%clk 0:01:17]}  h5 {[%clk 0:00:43]} 39. Nf7 {[%clk 0:01:16]}  Bxg3 {[%clk 0:00:36]} 40. fxg3 {[%clk 0:01:10]}  Bxc6 {[%clk 0:00:35]} 41. Nxg5+ {[%clk 0:01:07]}  Kg6 {[%clk 0:00:35]} 42. Nh3 {[%clk 0:01:06]}  h4 {[%clk 0:00:29]} 43. gxh4 {[%clk 0:01:01]}  Kh5 {[%clk 0:00:28]} 44. Kb6 {[%clk 0:01:00]}  Be4 {[%clk 0:00:28]} 45. Kc5 {[%clk 0:00:58]}  Kxh4 {[%clk 0:00:28]} 46. Nf4 {[%clk 0:00:58]}  Kg4 {[%clk 0:00:28]} 47. Ne6 {[%clk 0:00:59]}  Bf3 {[%clk 0:00:26]} 48. Kd4 {[%clk 0:00:59]}  Bd1 {[%clk 0:00:26]} 49. Ke5 {[%clk 0:00:58]}  Bc2 {[%clk 0:00:25]} 50. Nf4 {[%clk 0:00:58]}  Be4 {[%clk 0:00:25]} 51. Ne2 {[%clk 0:00:55]}  Kf3 {[%clk 0:00:24]} 52. Nd4+ {[%clk 0:00:55]}  Kg4 {[%clk 0:00:23]} 53. Ne6 {[%clk 0:00:56]}  f4 {[%clk 0:00:22]} 54. Nxf4 {[%clk 0:00:52]} 1/2-1/2


[Site "https://www.chess.com"]